Workbook

Sheet Main Summary
A1: PROJECT NAME
A2: INTERIM PAYMENT CERTIFICATE NO.
B3: Contractor: | C3: Client : | E3: Consultant:
A4: ABSTRACT OF COST/MAIN SUMMARY
A5: Sr. No. | B5: Item Description | C5: B.O.Q. Amount (Rs.) | D5: Previous Amount (Rs.) | E5: This Bill Amount (Rs.) | F5: Upto Date Amount (Rs.)
B6: BOQ Amount = | C6: ='Abstract of Cost'!F27 -> 47,619,049 | D6: ='Abstract of Cost'!H27 -> 1,698,065 | E6: ='Abstract of Cost'!J27 -> 7,427,020 | F6: =D6+E6 -> 9,125,085
A7: A | B7: TOTAL Total | C7: =SUM(C6:C6) -> 47,619,049 | D7: =SUM(D6:D6) -> 1,698,065 | E7: =SUM(E6:E6) -> 7,427,020 | F7: =SUM(F6:F6) -> 9,125,085
A8: B | B8: Add All Items 4.20% Above T.S | C8: =C7*4.2% -> 2,000,000 | D8: =D7*4.2% -> 71,319 | E8: 311,935 | F8: =D8+E8 -> 383,254
A9: C | B9: Net BOQ Amount (C= A+B) = | C9: =SUM(C7:C8) -> 49,619,049 | D9: =SUM(D7:D8) -> 1,769,383 | E9: =SUM(E7:E8) -> 7,738,955 | F9: 9,508,338
A10: D | B10: Non BOQ Amount = | D10: ='Abstract of Cost'!H67 -> 28,602,574 | E10: ='Abstract of Cost'!J67 -> 5,357,336 | F10: 33,959,911
A11: F | B11: Total Amount (F= C+ D+E) | C11: =SUM(C9:C10) -> 49,619,049 | D11: =D9+D10 -> 30,371,958 | E11: =E9+E10 -> 13,096,291 | F11: 43,468,249
A12: G | B12: ADD 5 % PST ON (F) = | C12: =C11*5% -> 2,480,952.46 | D12: =D11*5% -> 1,518,598 | E12: =E11*5% -> 654,815 | F12: =F11*5% -> 2,173,412
A13: H | B13: Total Amount Rs. (H= F+G) | C13: =SUM(C11:C12)-1 -> 52,100,001 | D13: =SUM(D11:D12) -> 31,890,556 | E13: =SUM(E11:E12) -> 13,751,106 | F13: 45,641,661
B14: Deductions
A15: 1 | B15: Secured Advance
A16: 2 | B16: Retention money @10% on 5 million
A17: 3 | B17: 5% remaining amount
A18: 4 | B18: D/d of 5% PST
A19: 5 | B19: D/d of 8 % Income Tax
A20: I | B20: Total Deductions
A21: J | B21: Net Payable Amount (J= H-I)
A28: Project Manager:________________ | E28: Resident Engineer:______________
A29: Contractor. | E29: Consultant.
E52: 16740.9

Sheet Variation
A1: Subject: | B1: ='Main Summary'!A1 -> PROJECT NAME
A2: Contractor:-
A3: Abstract of Quantity & Cost
A4: Variation # 3
A5: Item No | B5: Description of items | C5: Unit | D5: Qty | G5: Contractor | H5: Amount
D7: As per TS | E7: Up to Date Qty. | F7: Variation | G7: Rate | H7: (Rs.)
B8: BOQ Items
A9: VO | B9: ='Abstract of Cost'!B16 -> Raising of manhole i/c C.I Ring | C9: ='Abstract of Cost'!C16 -> Nos | D9: ='Abstract of Cost'!D16 -> 56 | E9: ='Abstract of Cost'!K16 -> 64.00 | F9: =E9-D9 -> 8.00 | G9: ='Abstract of Cost'!E16 -> 12,056.13 | H9: =G9*F9/1 -> 96,449
A10: VO | B10: ='Abstract of Cost'!B25 -> P/L PCC1:2:4 | C10: ='Abstract of Cost'!C25 -> %Cft | D10: ='Abstract of Cost'!D25 -> 149.71 | E10: ='Abstract of Cost'!K25 -> 13,065.00 | F10: =E10-D10 -> 12,915.29 | G10: ='Abstract of Cost'!E25 -> 58,636.20 | H10: =G10*F10/100 -> 7,573,036
B11: ='Abstract of Cost'!A28 -> Non BOQ ITEMS
A12: VO | B12: ='Abstract of Cost'!B29 -> Dismantling of PCC 1:2:4 including its removal from site | C12: ='Abstract of Cost'!C29 -> %Cft | D12: ='Abstract of Cost'!D29 -> 0.00 | E12: ='Abstract of Cost'!K29 -> 18,319.71 | F12: =E12-D12 -> 18,319.71 | G12: ='Abstract of Cost'!E29 -> 16,519.30 | H12: =G12*F12/100 -> 3,026,288
A13: VO | B13: ='Abstract of Cost'!B31 -> Providing and laying sub-base course of stone product of approved quality and grade including placing, mixing, spreading and compaction of sub-base material to required depth, camber, grade to achieve 100% maximum modified AASHO dry density, including carriage of all material to site of work except gravel and aggregate. | C13: ='Abstract of Cost'!C31 -> % Cft | D13: ='Abstract of Cost'!D31 -> 0 | E13: ='Abstract of Cost'!K31 -> 18,963.71 | F13: =E13-D13 -> 18,963.71 | G13: ='Abstract of Cost'!E31 -> 24,249.21 | H13: =G13*F13/100 -> 4,598,550
A14: VO | B14: ='Abstract of Cost'!B54 -> Providing and fixing, 6" (150 mm) thick R.C.C. manhole cover for 22" as per standard drawing STD/PD No. 6 of 1977, complete in all respects. I/C FRAME COMPLETE IN ALL RESPECT | C14: ='Abstract of Cost'!C54 -> Per Set | D14: ='Abstract of Cost'!D54 -> 0 | E14: ='Abstract of Cost'!K54 -> 28.00 | F14: =E14-D14 -> 28.00 | G14: ='Abstract of Cost'!E54 -> 16,257.15 | H14: =G14*F14/1 -> 455,200
H15: =SUM(H9:H14) -> 15,749,523 | L15: 49,267,271
A18: QS Contractor | F18: Residant Engineer
A19: Contractor | F19: Consultant

Sheet Abstract of Cost
A1: =+Variation!B1 -> PROJECT NAME
B2: Contractor:- | C2: Client :- | J2: Consultant:
A3: INTERIM PAYMENT CERTIFICATE NO.
A4: ABSTRACT OF COST
A5: Sr. No. | B5: Description of items | C5: Unit | D5: As Per T.S | G5: Previous Bill | I5: This Bill | K5: Up to Date
D6: Quantity | E6: Rate | F6: Amount (Rs.) | G6: Quantity | H6: Amount (Rs.) | I6: Quantity | J6: Amount (Rs.) | K6: Quantity | L6: Amount (Rs.)
A7: BOQ ITEMS
A8: 1 | B8: Dismantling of road metling i/c removal from site | C8: %Cft | D8: 19,262.20 | E8: 4,023.91 | F8: =D8*E8/100 -> 775,094 | G8: 1,917.25 | I8: ='1.Dism of Road'!M15 -> (8.30) | K8: =G8+I8 -> 1,908.95
B9: Reduce Rate @ 97 % | E9: =E8*97% -> 3,903.19 | H9: 73,291 | J9: =L9-H9 -> 1,219 | L9: =K8*E9/100 -> 74,510
A10: =A8+1 -> 2 | B10: Regular excavation i/c removal from site | C10: %0Cft | D10: 4,834.06 | E10: 18,142.30 | F10: =D10*E10/1000 -> 87,701 | G10: 0 | H10: 0 | J10: =I10*E10/1000 -> 0 | K10: =I10 -> 0 | L10: =J10 -> 0
A11: =A10+1 -> 3 | B11: Providing and laying road edging of 3" (75 mm) wide and 9" (225 mm) deep brick on end,complete in all respects | C11: Rft | D11: 9,668.12 | E11: 72.20 | F11: =D11*E11/1 -> 698,038 | G11: 0 | H11: 0 | J11: =I11*E11/100 -> 0 | K11: =I11 -> 0 | L11: =J11 -> 0
A12: 4 | B12: Providing and laying Base course of stone product of approved quality and grade, including placing, mixing, spreading and compaction of sub-base material to required depth, camber, grade to achieve 100% maximum modified AASHTO dry density, including carriage of all material to site of work except gravel and aggregate. | C12: %Cft | D12: 57,837.94 | E12: 32,366.20 | F12: =D12*E12/100 -> 18,719,943
A13: 5 | B13: Providing and laying bituminous priming coat , using 10 lbs. kerosene oil and 10 lbs.binder per 100 Sft. or 0.5 Kg | C13: %sft | D13: 115,675.88 | E13: 2,198.60 | F13: =D13*E13/100 -> 2,543,250 | G13: 0 | H13: 0 | J13: =E13*I13 -> 0 | K13: =I13 -> 0 | L13: 0
A14: 6 | B14: Providing and laying bituminous tack coat , using 10 lbs. of bitumen per 100 Sf t (0.49 Kg of bitumen per sq.m.) | C14: %sft | D14: 12,424.89 | E14: 1,172.85 | F14: =D14*E14/100 -> 145,725 | G14: 0 | H14: 0 | J14: =E14*I14 -> 0 | K14: 0 | L14: 0
A15: 7 | B15: P/L 2" thick plant mixed Carpeting using 4.5% bitumen content | C15: %sft | D15: 128,100.78 | E15: 17,480.70 | F15: =D15*E15/100 -> 22,392,913 | G15: 0 | H15: 0 | J15: =I15*E15/100 -> 0 | K15: 0 | L15: 0
A16: 8 | B16: Raising of manhole i/c C.I Ring | C16: Nos | D16: 56.00 | E16: 12,056.13 | F16: =D16*E16 -> 675,143 | G16: ='8. Raising MH'!M9 -> 0 | H16: 0 | I16: ='8. Raising MH'!M10 -> 64.00 | K16: =I16+G16 -> 64.00
B17: Reduce Rate @ 95 % | E17: =E16*95% -> 11,453.32 | H17: =G16*E17/100 -> 0 | J17: =L17-H17 -> 733,013 | L17: =K16*E17/1 -> 733,013
A18: =A16+1 -> 9 | B18: Painting Traffic Lane Marking of specified width (1.5mm thick),with Thermoplastic (TP)Paint including Glass Beads, complete in all respect, as approved and directed by Engineer incharge 5" wide | C18: Rft | D18: 11,228.12 | E18: 47.85 | F18: =D18*E18 -> 537,266 | G18: 0 | J18: =I18*E18 -> 0 | K18: =I18 -> 0
A19: 10 | B19: Providing & fixing Cat Eyes of size 4" x 4" x 3/4" duly casted with specified material having plastic strip containing mini retro-reflective glass beads of color white/red/yellow having specifid reflections, quality & shape i/c the cost of self built in 1 | C19: Nos | D19: 936.00 | E19: 509.65 | F19: =D19*E19 -> 477,032 | G19: 0 | J19: =I19*E19 -> 0 | K19: =I19 -> 0
A20: 11 | B20: Structure excavation for sewer i/c removal from site | C20: %0Cft | D20: 299.42 | E20: 17,913.61 | F20: =D20*E20/1000 -> 5,364 | G20: 2,812.90 | I20: ='11.Str Exc..'!L13 -> (0.45) | K20: =I20+G20 -> 2,812.46
B21: Reduce Rate @ 97 % | E21: =E20*97% -> 17,376.20 | H21: 47,870 | J21: =L21-H21 -> 1,000 | L21: =K20*E21/1000 -> 48,870
A22: =A20+1 -> 12 | B22: Providing, fixing, testing and commissioning of μ-PV C (Unpl asticized Polyvinyl Chloride )Nikasi/ wast e pipe make of Dadex /Popular/Beta or equivalent, plain / socket ended conforming to code EN-1329 of specified SDR (St andard Dimensi on Ratio) includi | C22: Rft | D22: 149.71 | E22: 463.75 | F22: =D22*E22/1 -> 69,428 | G22: 0 | J22: =I22*E22/100 -> 0 | K22: 0
A23: 13 | B23: Constructed standered gully grating chamber, 3'x2.5' (900x750 m) complete in all respect (b) concrete Gully trap | C23: Nos | D23: 19.00 | E23: 21,282.50 | F23: =D23*E23/1 -> 404,368 | G23: 40.00 | I23: ='13 GG'!M11 -> 8.00 | K23: =G23+I23 -> 48.00
B24: Reduce Rate @ 97 % | E24: =E23*97% -> 20,644.03 | H24: 808,735 | J24: =L24-H24 -> 182,178 | L24: =K23*E24 -> 990,913 | M24: =K23*E23*95% -> 970,482
A25: =A23+1 -> 14 | B25: P/L PCC1:2:4 | C25: %Cft | D25: 149.71 | E25: 58,636.20 | F25: =D25*E25/100 -> 87,784 | G25: 1,379.01 | H25: 0 | I25: ='14 PCC'!M32 -> 11,685.99 | K25: =I25+G25 -> 13,065.00
B26: Reduce Rate @ 95 % | E26: =E25*95% -> 55,704.39 | H26: 768,169.00 | J26: =L26-H26 -> 6,509,610 | L26: =K25*E26/100 -> 7,277,779 | M26: =J26+H26 -> 7,277,779
A27: Total BOQ ITEMS | F27: =SUM(F8:F26) -> 47,619,049 | H27: =SUM(H8:H26) -> 1,698,065 | J27: =SUM(J8:J26) -> 7,427,020 | L27: =SUM(L8:L26) -> 9,125,085 | M27: =J27+H27 -> 9,125,085
A28: Non BOQ ITEMS | Q28: =F27*4.2% -> 2,000,000.06 | R28: =F27*5% -> 2,380,952.46
A29: 1 | B29: Dismantling of PCC 1:2:4 including its removal from site | C29: %Cft | D29: 0.00 | E29: 16,519.30 | F29: =D29*E29/100 -> 0 | G29: 6,919.93 | I29: ='1.Dismantling PCC'!M61 -> 11,399.78 | K29: =I29+G29 -> 18,319.71 | Q29: =#REF!+#REF!+#REF! -> 
B30: Reduce Rate @ 97 % | E30: =E29*97% -> 16,023.72 | H30: 1,028,812 | J30: =L30-H30 -> 1,906,688 | L30: =K29*E30/100 -> 2,935,500
A31: 2 | B31: Providing and laying sub-base course of stone product of approved quality and grade including placing, mixing, spreading and compaction of sub-base material to required depth, camber, grade to achieve 100% maximum modified AASHO dry density, including carriage of all material to site of work except gravel and aggregate. | C31: % Cft | D31: 0.00 | E31: 24,249.21 | F31: =D31*E31/100 -> 0 | G31: 10,037.14 | I31: ='2.Sub Base'!O23 -> 8,926.57 | K31: =I31+G31 -> 18,963.71 | M31: =K31*E32/100 -> 4,460,593
B32: Reduce Rate @ 97 % | E32: =E31*97% -> 23,521.73 | H32: 2,312,231 | J32: =L32-H32 -> 2,148,363 | L32: =K31*E32/100 -> 4,460,593
A33: =A31+1 -> 3 | B33: Dry rammed brick ballast 1.5" to 2" gauge Ch. 6 Page 41 item 2 | C33: % Cft | D33: 0.00 | E33: 12,144.00 | F33: =D33*E33/100 -> 0 | G33: 230.79 | I33: ='3 Dry Rammed'!K10 -> 0 | K33: =I33+G33 -> 230.79 | M33: =K33*E34/100 -> 27,186
B34: Reduce Rate @ 97 % | E34: =E33*97% -> 11,779.68 | H34: 26,626 | J34: =L34-H34 -> 561 | L34: =K33*E34/100 -> 27,186
A35: =A33+1 -> 4 | B35: Cement concrete brick or stone ballast 1.5" to 2" gauge, in foundation and plinth ( 1 : 6 : 12) Ch. 6 Page 41 item 3 | C35: 100 Cft | E35: 28,201.80 | G35: 127.17 | I35: ='4. Stone Ballast'!K11 -> 0 | K35: =I35+G35 -> 127.17 | M35: =K35*E36/100 -> 34,788
B36: Reduce Rate @ 97 % | E36: =E35*97% -> 27,355.75 | H36: 34,071 | J36: =L36-H36 -> 717 | L36: =K35*E36/100 -> 34,788
A37: =A35+1 -> 5 | B37: Pacca brick work other than building upto 10ft. (3 m) height. i) cement, sand mortar:- Ratio 1:3 + Extra for pacca brick work in steining of wells or any other circular masonry.(Rs.43,862.40 + Rs.3,707.30). | C37: % Cft | D37: 0.00 | E37: =43862.4+3707.3 -> 47,569.70 | G37: 968 | I37: ='5. Brickwork'!J14 -> 0 | K37: =I37+G37 -> 968.15
B38: Reduce Rate @ 97 % | E38: =E37*97% -> 46,142.61 | H38: 414,491 | J38: =L38-H38 -> 32,238 | L38: =K37*E38/100 -> 446,729
A39: =A37+1 -> 6 | B39: Cement plaster 1:3 upto 20' (6.00 m) height:-b) ½" (13 mm) thick | C39: % Sft | D39: 0.00 | E39: 4,617.95 | F39: =D39*E39/100 -> 0 | G39: 1,505 | I39: ='6. Plaster'!J14 -> 0 | K39: =I39+G39 -> 1,505.07
B40: Reduce Rate @ 97 % | E40: =E39*97% -> 4,479.41 | H40: 62,553 | J40: =L40-H40 -> 4,865 | L40: =K39*E40/100 -> 67,418
A41: =A39+1 -> 7 | B41: Cement pointing flush upto 20' height in (1:2) Ch. 11 Page 76 item 16 | C41: % Sft | D41: 0.00 | E41: 4,310.75 | F41: =E41*D41/100 -> 0 | G41: 1076.65 | I41: ='7.Pointing'!J13 -> 0 | K41: =I41+G41 -> 1,076.65
B42: Reduce Rate @ 97 % | E42: =E41*97% -> 4,181.43 | H42: 41,771 | J42: =L42-H42 -> 3,249 | L42: =K41*E42/100 -> 45,019
A43: =A41+1 -> 8 | B43: Cement concrete plain including placing , compacting finishing and curing complete ( including washing of stone aggregate) Ch. 6 Page 2 item 5) (1:4:8) | C43: % Cft | D43: 0.00 | E43: 48,485.40 | F43: =E43*D43/100 -> 0 | G43: 4320.38 | I43: ='8. PCC148 '!J22 -> 0 | K43: =I43+G43 -> 4,320.38
B44: Reduce Rate @ 97 % | E44: =E43*97% -> 47,030.84 | H44: 1,885,278 | J44: =L44-H44 -> 146,632 | L44: =K43*E44/100 -> 2,031,910
A45: =A43+1 -> 9 | B45: Fabrication of mild steel reinforcement for cement concrete , including cutting ,bending laying in position, making joints, and fastening including the cost of binding wire and labour charges for binding of steel reinforcement (also includes removal of | C45: % Kg | D45: 0.00 | E45: 35,224.50 | F45: 0 | G45: 27158.10 | I45: ='9. Steel R'!J18+'9. Steel M'!J17 -> 0 | K45: =I45+G45 -> 27,158.10
B46: Reduce Rate @ 97 % | E46: =E45*97% -> 34,167.77 | H46: 8,609,674 | J46: =L46-H46 -> 669,642 | L46: =K45*E46/100 -> 9,279,317
A47: 10 | B47: Providing and laying reinforceed cement concrete (including pre stressed concrete), using coarse sand and screened graded and washed aggregate , in required shape and design, including form moulds, shuttering, lifting, compacting, curing, rendering,and fi b) Precast reinforced cement concrete and prestressed reinforced cement concrete in columns, beams, lintels, stair cases, shelves, etc. :- a (1:1.5:3) | C47: P Cft | D47: 0.00 | E47: 746.37 | G47: 15562.46 | I47: ='10. RCC '!J25 -> 0 | K47: =I47+G47 -> 15,562.46
B48: Reduce Rate @ 97 % | E48: =E47*97% -> 723.98 | H48: 10,453,771 | J48: =L48-H48 -> 813,122 | L48: =K47*E48/1 -> 11,266,893 | M48: =J48+H48 -> 11,266,893
B49: Deduction Chenab Sand | E49: (20.60) | J49: =K47*E49 -> -320,587 | L49: =J49 -> (320,587)
A50: =A47+1 -> 11 | B50: Providing, fixing, testing and commissioning of µ-PVC (Unplasticized Polyvinyl Chloride ) Nikasi/ waste pipe make of Dadex /Popular/Beta or equivalent, plain /socket ended conforming to code EN-1329 of specified SDR (Standard Dimension Ratio) including the cost of specials and Solvents complete in all respect as approved and directed by the Engineer Incharge. Ch 19 Page 118 Item 47 b (2" Dia) | C50: P Rft | D50: 0.00 | E50: 112.40 | F50: =D50*E50 -> 0 | G50: 468.00 | I50: ='11.UPVC'!J14 -> 0 | K50: =I50+G50 -> 468.00 | M50: =K50*E51 -> 51,025
B51: Reduce Rate @ 97 % | E51: =E50*97% -> 109.03 | H51: 49,973 | J51: =L51-H51 -> 1,052 | L51: =K50*E51/1 -> 51,025
A52: =A50+1 -> 12 | B52: Providing and fixing, 6" thick R.C.C manhole cover, 22" I/d, with Tee shaped C.I frame of 20" clear I/d ( frame weighing 37.324 Kg or one mound), as per standard drawing STD/PD No. 5 of 1977, complete in all respects. Ch. 21 Page 139 item 16 | C52: Per Set | E52: 25,221.20 | F52: =D52*E52 -> 0 | G52: 28.00 | I52: =-G52 -> (28.00) | K52: =I52+G52 -> 0
B53: Reduce Rate @ 95 % | E53: =E52*95% -> 23,960.14 | H53: 564,955 | J53: =-H53 -> -564,955 | L53: =K52*E53/1 -> 0
A54: 12 | B54: Providing and fixing, 6" (150 mm) thick R.C.C. manhole cover for 22" as per standard drawing STD/PD No. 6 of 1977, complete in all respects. I/C FRAME COMPLETE IN ALL RESPECT | C54: Per Set | E54: 16,257.15 | F54: =D54*E54 -> 0 | I54: ='12 RCC Cover'!J12 -> 28.00 | K54: =I54+G54 -> 28.00
B55: Reduce Rate @ 97 % | E55: =E54*97% -> 15,769.44 | J55: =L55-H55 -> 441,544 | L55: =K54*E55/1 -> 441,544
A56: =A52+1 -> 13 | B56: Providing and laying R.C.C. pipe, moulded with cement concrete 1:1½:3, with spigot socket or collar joint, etc. including cost of reinforcement, conforming to B.S. 5911: Part I: 1981, Class "L" including carriage of pipe from factory to site of work, lowering in trenches to correct alignment and grade, jointing, cutting pipes where necessary, finishing and testing, etc., complete. Chapter - 21 Page 136 Item 01 (9" dia) | C56: P Rft | E56: 590.60 | F56: =D56*E56 -> 0 | G56: 312.00 | I56: ='13.RCC Pipe 9"'!J14 -> 0 | K56: =I56+G56 -> 312.00
B57: Reduce Rate @ 95 % | E57: =E56*95% -> 561.07 | H57: 165,840 | J57: =L57-H57 -> 9,213 | L57: =K56*E57/1 -> 175,054
A58: =A56+1 -> 14 | B58: P/L of Select Fill material including ploughing and mixing with blade grade or disc harrow or other suitable equipment and compaction by mechanical means at OMC and dressing to designed section, complete in all respect 95% to 100% maximum modified AASHTO dry-density with vibratory roller.Mixing, Moisterning earth to optimum moisture contant in layer etc. complete with tractor complete with rotorator blade. | C58: 1000 Cft | D58: 0.00 | E58: 36,364.15 | F58: =D58*E58 -> 0 | G58: 1526.68 | I58: ='14. Select Fill'!J11 -> 0 | K58: =I58+G58 -> 1,526.68
B59: Reduce Rate @ 97 % | E59: =E58*97% -> 35,273.23 | H59: 49,965 | J59: =L59-H59 -> 3,886 | K59: =I59+G59 -> 0 | L59: =K58*E59/1000 -> 53,851
A60: 15 | B60: Desilting of Sewer through winch machine including hire chargfes for two No. winch machines, operator for operating of winch machines, POL, etc.complete in all respects. Sewer 36" Dia | C60: P/Rft | D60: 0.00 | E60: 889.98 | F60: =E60*D60 -> 0 | G60: 3,400 | I60: ='15.Desilting'!J13 -> 0 | K60: =I60+G60 -> 3,400.00
B61: Reduce Rate @ 97 % | E61: =E60*97% -> 863.28 | H61: 2,874,632 | J61: =L61-H61 -> 60,522 | L61: =K60*E61/1 -> 2,935,154
A62: 16 | B62: Providing and fixing theremopore (foamed polythene) sheet in horizontal and vertical expansion joints: a) 1" (25 mm) thick thermopore sheet | C62: Sft | D62: 0.00 | E62: 26.70 | F62: =E62*D62 -> 0 | G62: 205.92 | I62: ='16. theremopore'!J11 -> 0 | K62: =I62+G62 -> 205.92
B63: Reduce Rate @ 97 % | E63: =E62*97% -> 25.90 | H63: 5,224 | J63: =L63-H63 -> 109 | L63: =K62*E63/1 -> 5,333
A64: 17 | B64: Providing and fixing marble strip of any shade for dividing the mosaic flooring into panels a) Size 1½" x 3/8" (40 x 10 mm) | C64: Rft | E64: 38.30 | F64: =E64*D64 -> 0 | G64: 624 | I64: ='18.Marble Strip'!J10 -> 0 | K64: =I64+G64 -> 624.00
B65: Reduce Rate @ 97 % | E65: =E64*97% -> 37.15 | H65: 22,707 | J65: =L65-H65 -> 475 | L65: =K64*E65/1 -> 23,182
A67: Total Non BOQ ITEMS | H67: =SUM(H29:H66) -> 28,602,574 | J67: =SUM(J29:J66) -> 5,357,336 | L67: =SUM(L29:L66) -> 33,959,911 | M67: =J67+H67 -> 33,959,911
D124: 3.14
D173: 3.14
J221: =SUM(J213:J220) -> 0
A224: 19 | B224: Transportation of earth all types when the total distance, including the lead covered in the item of work, is more than 1000 ft. Upto 5 mile.
B225: Total qty of sand filling | J225: 135864.10
I226: Total | J226: =SUM(J224:J225) -> 135864.10
A227: 20 | B227: Carriage of 100 Cft. (2.83 cu.m) of all materials like stoneggregate, spawl, kankar lime (unslaked), surkhi, etc.by truck or by any other means owned by the contractor. (Lead upto 193 Km)
B228: Total of qty of curshed stone | J228: 11196.00
B229: PCC 1:2:4 | C229: 2869.02 | E229: 0.88 | F229: - | I229: - | J229: =E229*C229 -> 2524.74
I230: Total | J230: =SUM(J228:J229) -> 13720.73
D481: 3.14
D543: 3.14

Sheet 1.Dism of Road
A1: =+'Abstract of Cost'!A1 -> PROJECT NAME
B2: Contractor:- | G2: Client : | L2: Consultant:
A3: IPC NO. 03
A4: ='Abstract of Cost'!B8 -> Dismantling of road metling i/c removal from site
A5: S.No. | B5: IPC No. | C5: ReQ.No | D5: Date | E5: Chainage | G5: No. | H5: Length (ft) | I5: Width (ft) | L5: Avg. Thickness (ft) | M5: Quantity (Cft) | N5: Remarks
E6: From | F6: To | I6: Start | J6: End | K6: Average
B7: 1 | C7: 1800 RD to 1900 RD | E7: 18+00 | F7: 19+00 | G7: 1 | H7: 100.00 | I7: 25.83 | J7: 23.17 | K7: 24.50 | L7: 0.16 | M7: =H7*K7*L7 -> 392.00
B8: 1 | C8: 1900 RD to 2000 RD | E8: 19+00 | F8: 20+00 | G8: 1 | H8: 100.00 | I8: =J7 -> 23.17 | J8: 24.66 | K8: 23.92 | L8: 0.16 | M8: 382.64
B9: 1 | C9: 2000 RD to 2100 RD | E9: 20+00 | F9: 21+00 | G9: 1 | H9: 100.00 | I9: 24.66 | J9: 23.00 | K9: 23.83 | L9: 0.16 | M9: 381.28
B10: 1 | C10: 2100 RD to 2200 RD | E10: 21+00 | F10: 22+00 | G10: 1 | H10: 100.00 | I10: 23.00 | J10: =(35+29+30)/3 -> 31.33 | K10: 27.17 | L10: 0.16 | M10: 434.67
B11: 1 | C11: 2200 RD to 2270 RD | E11: 22+00 | F11: 22+60 | G11: 1 | H11: 70.00 | I11: 31.33 | J11: 27.00 | K11: 29.17 | L11: 0.16 | M11: 326.67
C12: Deduction Manhole | G12: -6 | H12: 3.14 | K12: =1.66*1.66 -> 2.76 | L12: 0.16 | M12: =PRODUCT(G12:L12) -> -8.31
B13: Total Quantity (Cft) = | M13: =SUM(M7:M12) -> 1908.95
B14: Already Paid Quantity (CFT) = | M14: 1917.25
B15: This Bill Quantity (CFT) = | M15: =M13-M14 -> -8.30
A19: Quantity Surveyor:___________________ | L19: Quantity Surveyor:______________
A20: Contractor. | L20: Consultant.

Sheet 8. Raising MH
A1: =+'1.Dism of Road'!A1:N1 -> PROJECT NAME
B2: Contractor:- | G2: Client : | L2: Consultant:
A3: ='11.Str Exc..'!A3:M3 -> IPC NO. 03
A4: ='Abstract of Cost'!B16 -> Raising of manhole i/c C.I Ring
A5: S.No. | B5: IPC No. | C5: ReQ.No | D5: Date | E5: Chainage | G5: No. | H5: Length (ft) | I5: Width (ft) | L5: Avg. Thickness (ft) | M5: Quantity (Cft) | N5: Remarks
E6: From | F6: To | I6: Start | J6: End | K6: Average
B7: 1 | G7: 64 | M7: =G7 -> 64.00
B8: Total Quantity (Each) = | M8: =SUM(M7:M7) -> 64.00
B9: Already Paid Quantity (Each) = | M9: 0.00
B10: This Bill Quantity (Each) = | M10: =M8-M9 -> 64.00
A14: Quantity Surveyor:___________________ | L14: Quantity Surveyor:______________
A15: Contrctor. | L15: Consultant.

Sheet 11.Str Exc..
A1: =+'8. Raising MH'!A1:N1 -> PROJECT NAME
B2: Contractor:- | F2: Client : | K2: Consultant:
A3: ='1.Dism of Road'!A3:N3 -> IPC NO. 03
A4: ='Abstract of Cost'!B20 -> Structure excavation for sewer i/c removal from site
A5: S.No. | B5: IPC No. | C5: Date | D5: Chainage | F5: No. | G5: Length (ft) | H5: Width (ft) | K5: Avg. Thickness (ft) | L5: Quantity (Cft) | M5: Remarks
D6: From | E6: To | H6: Start | I6: End | J6: Average
C7: Rcc Pipe 9" dia | F7: 1 | G7: 312.00 | J7: 2.25 | K7: 2.92 | L7: =PRODUCT(F7:K7) -> 2049.84
C8: Deduction of Manhole | F8: -6 | G8: 7.00 | J8: 2.25 | K8: 2.92 | L8: =PRODUCT(F8:K8) -> -275.94 | Q8: =312/6 -> 52
C9: Manholes on 9" dia lines | F9: 6 | G9: 3.14 | I9: 3.50 | J9: 3.50 | K9: 4.50 | L9: =PRODUCT(F9:K9) -> 1038.56
P10: =F8*8 -> -48
B11: Already Paid Quantity (CFT) = | L11: =SUM(L7:L10) -> 2812.46
B12: Already Paid Quantity (CFT) = | L12: 2812.90
B13: This Bill Quantity (CFT) = | L13: =L11-L12 -> -0.45
A17: Quantity Surveyor:___________________ | K17: Quantity Surveyor:______________
A18: Contractor. | K18: Consultant.

Sheet 13 GG
A1: =+'11.Str Exc..'!A1:M1 -> PROJECT NAME
B2: Contractor:- | G2: Client : | L2: Consultant:
A3: ='11.Str Exc..'!A3:M3 -> IPC NO. 03
A4: ='Abstract of Cost'!B23 -> Constructed standered gully grating chamber, 3'x2.5' (900x750 m) complete in all respect (b) concrete Gully trap
A5: S.No. | B5: IPC No. | C5: ReQ.No | D5: Date | E5: Chainage | G5: No. | H5: Length (ft) | I5: Width (ft) | L5: Avg. Thickness (ft) | M5: Quantity (Cft) | N5: Remarks
E6: From | F6: To | I6: Start | J6: End | K6: Average
B7: 1 | C7: Along Anum Road | G7: 40 | M7: =G7 -> 40.00
G8: 8 | M8: =G8 -> 8.00
B9: Total Quantity (Each) = | M9: =SUM(M7:M8) -> 48.00
B10: Already Paid Quantity (Each) = | M10: 40.00
B11: This Bill Quantity (Each) = | M11: =M9-M10 -> 8.00
A15: Quantity Surveyor:___________________ | L15: Quantity Surveyor:______________
A16: Contractor. | L16: Consultant.

Sheet 14 PCC
A1: =+'13 GG'!A1:N1 -> PROJECT NAME
B2: Contractor:- | G2: Client : | L2: Consultant:
A3: ='13 GG'!A3:N3 -> IPC NO. 03
A4: ='Abstract of Cost'!B25 -> P/L PCC1:2:4
A5: S.No. | B5: IPC No. | C5: ReQ.No | D5: Date | E5: Chainage | G5: No. | H5: Length (ft) | I5: Width (ft) | L5: Avg. Thickness (ft) | M5: Quantity (Cft) | N5: Remarks
E6: From | F6: To | I6: Start | J6: End | K6: Average
C7: Benching
C8: Manhole 6' Dia | G8: 6 | H8: 3.14 | J8: =4.5/2 -> 2.25 | K8: =4.5/2 -> 2.25 | L8: =(1+0.75)/2 -> 0.88 | M8: =PRODUCT(G8:L8) -> 83.46 | P8: =L8*K8*H8*G8 -> 37.09125 | Q8: =4.25/2 -> 2.125
C9: Deduction of Pipe Area | G9: =-6/2 -> -3 | H9: 4.50 | K9: 0.38 | L9: 0.38 | M9: =PRODUCT(G9:L9) -> -1.90
C10: Manhole 7.5' Dia | G10: 22 | H10: 3.14 | K10: =3*3 -> 9.00 | L10: =(1+0.75)/2 -> 0.88 | P10: =L10*K10*H10*G10 -> 544.005 | Q10: =4.25/2 -> 2.125
C11: Deduction of Pipe Area | G11: =-22/2 -> -11 | H11: 6.00 | K11: 1.50 | L11: 1.50
C12: Shoulder PCC | P12: =L12*K12*H12*G12 -> 0 | Q12: =4.25/2 -> 2.125
C13: 1400-RD to 1500 RD | G13: 1 | H13: 100.00 | K13: 0.75 | L13: 0.67 | M13: =PRODUCT(G13:L13) -> 49.92 | O13: 24.75 | P13: 24 | Q13: =O13-P13 -> 0.75
C14: 1500 RD to 1600 RD | G14: 1 | H14: 100.00 | K14: 0.91 | L14: 0.67 | M14: 60.97 | O14: 24.91 | P14: 24 | Q14: =O14-P14 -> 0.91
C15: 1600 RD to 1700 RD | G15: 1 | H15: 100.00 | K15: 1.71 | L15: 0.67 | M15: 114.57 | O15: 25.71 | P15: 24 | Q15: 1.71
C16: 1700 RD to 1800 RD | G16: 1 | H16: 100.00 | K16: 2.00 | L16: 0.67 | M16: 134.00 | O16: 26.00 | P16: 24 | Q16: 2.00
C17: 1800 RD to 1900 RD | G17: 1 | H17: 100.00 | K17: 0.50 | L17: 0.67 | M17: 33.50 | O17: 24.50 | P17: 24 | Q17: 0.50
C18: 1900 RD to 2000 RD | G18: 1 | H18: 100.00 | O18: 23.92 | P18: 24 | Q18: -0.09
C19: 2000 RD to 2100 RD | G19: 1 | H19: 100.00 | O19: 23.83 | P19: 24 | Q19: -0.17
C20: 2100 RD to 2200 RD | G20: 1 | H20: 100.00 | K20: 3.17 | L20: 0.67 | M20: 212.17 | O20: 27.17 | P20: 24 | Q20: 3.17
C21: 2200 RD to 2300 RD | G21: 1 | H21: 100.00 | K21: 5.17 | L21: 0.67 | M21: 346.17 | O21: 29.17 | P21: 24 | Q21: 5.17
C22: 2300 RD to 2370 RD | G22: 1 | H22: 100.00 | K22: 5.17 | L22: 0.67 | M22: 346.17 | O22: 29.17 | P22: 24 | Q22: 5.17
C23: Road 1 | G23: 1 | H23: 203.00 | K23: 13.00 | L23: 0.50 | M23: =PRODUCT(G23:L23) -> 1319.50 | O23: 29.17 | P23: 24 | Q23: =O23-P23 -> 5.17
C24: Road 2 | G24: 1 | H24: 225.00 | K24: 14.00 | L24: 0.50 | M24: =PRODUCT(G24:L24) -> 1575.00 | O24: 29.17 | P24: 24 | Q24: =O24-P24 -> 5.17
C25: Road 3 | G25: 1 | H25: 276.00 | K25: 15.00 | L25: 0.50 | M25: =PRODUCT(G25:L25) -> 2070.00 | O25: 29.17 | P25: 24 | Q25: =O25-P25 -> 5.17
C26: Road 4 | G26: 1 | H26: 343.00 | K26: 23.67 | L26: 0.50 | M26: 4059.41 | O26: 29.17 | P26: 24 | Q26: 5.17
C27: Deduction Manhole | G27: -64 | H27: 3.142 | K27: =1.75*1.75 -> 3.06 | L27: 0.50 | M27: -307.92
C28: Footpath | O28: 29.17 | P28: 24 | Q28: =O28-P28 -> 5.17
G29: 1 | H29: 1800.00 | K29: 5.00 | L29: 0.33 | M29: =PRODUCT(G29:L29) -> 2970.00 | O29: 29.17 | P29: 24 | Q29: 5.17
B30: Total Quantity (Cft) = | M30: =SUM(M8:M29) -> 13065.00
B31: Already Paid Quantity (Cft) = | M31: 1379.01
B32: This Bill Quantity (Cft) = | M32: =M30-M31 -> 11685.99
A36: Quantity Surveyor:___________________ | L36: Quantity Surveyor:______________
A37: Contractor: | L37: Consultant:

Sheet 1.Dismantling PCC
A1: =+'14 PCC'!A1:N1 -> PROJECT NAME
B2: Contractor:- | G2: Client : | L2: Consultant:
A3: ='13 GG'!A3:N3 -> IPC NO. 03
A4: ='Abstract of Cost'!#REF! -> 
A5: S.No. | B5: IPC No. | C5: ReQ.No | D5: Date | E5: Chainage | G5: No. | H5: Length (ft) | I5: Width (ft) | L5: Avg. Thickness (ft) | M5: Quantity (Cft) | N5: Remarks
E6: From | F6: To | I6: Start | J6: End | K6: Average
B7: 1 | C7: 1800 RD to 1900 RD | E7: 18+00 | F7: 19+00 | G7: 1 | H7: 100.00 | K7: 24.50 | L7: 0.58 | M7: =H7*K7*L7*G7 -> 1421.00
B8: 1 | C8: 1900 RD to 2000 RD | E8: 19+00 | F8: 20+00 | G8: 1 | H8: 100.00 | K8: 23.92 | L8: 0.58 | M8: =H8*K8*L8*G8 -> 1387.07
B9: 1 | C9: 2000 RD to 2100 RD | E9: 20+00 | F9: 21+00 | G9: 1 | H9: 100.00 | K9: 23.83 | L9: 0.58 | M9: 1382.14
B10: 1 | C10: 2100 RD to 2200 RD | E10: 21+00 | F10: 22+00 | G10: 1 | H10: 100.00 | K10: 27.17 | L10: 0.58 | M10: 1575.67
B11: 1 | C11: 2200 RD to 2270 RD | E11: 22+00 | F11: 22+60 | G11: 1 | H11: 70.00 | K11: 29.17 | L11: 0.58 | M11: 1184.17
C12: Deduction Manhole | G12: -6 | H12: 3.14 | K12: =1.66*1.66 -> 2.76 | L12: 0.58 | M12: =PRODUCT(G12:L12) -> -30.11
C13: Ramps
G14: 1 | H14: 5.00 | K14: 2.00 | L14: 4.00 | M14: 40.00
G15: 1 | H15: 11.00 | K15: 5.00 | L15: 1.00 | M15: 55.00
G16: 1 | H16: 18.00 | K16: 1.50 | L16: 1.50 | M16: 40.50
G17: 1 | H17: 5.00 | K17: 6.00 | L17: 1.00 | M17: 30.00
G18: 1 | H18: 21.00 | K18: 2.00 | L18: 2.00 | M18: 84.00
G19: 1 | H19: 2.00 | K19: 2.00 | L19: 1.50 | M19: 6.00
G20: 1 | H20: 2.00 | K20: 1.50 | L20: 2.00 | M20: 6.00
G21: 1 | H21: 18.00 | K21: 5.00 | L21: 2.00 | M21: 180.00
G22: 1 | H22: 37.00 | K22: 5.00 | L22: 1.00 | M22: 185.00
G23: 1 | H23: 20.00 | K23: 5.00 | L23: 1.00 | M23: 100.00
G24: 1 | H24: 4.00 | K24: 2.00 | L24: 2.00 | M24: 16.00
G25: 1 | H25: 25.00 | K25: 5.00 | L25: 2.00 | M25: 250.00
G26: 1 | H26: 45.00 | K26: 3.00 | L26: 1.50 | M26: 202.50
G27: 1 | H27: 3.00 | K27: 2.00 | L27: 3.00 | M27: 18.00
G28: 1 | H28: 4.50 | K28: 3.00 | L28: 1.00 | M28: 13.50
G29: 1 | H29: 6.00 | K29: 2.00 | L29: 3.00 | M29: 36.00
G30: 1 | H30: 7.00 | K30: 1.50 | L30: 1.00 | M30: 10.50
G31: 1 | H31: 16.00 | K31: 1.50 | L31: 1.00 | M31: 24.00
G32: 1 | H32: 4.00 | K32: 1.00 | L32: 1.00 | M32: 4.00
G33: 1 | H33: 8.00 | K33: 2.00 | L33: 1.50 | M33: 24.00
G34: 1 | H34: 19.00 | K34: 1.50 | L34: 1.00 | M34: =H34*K34*L34*G34 -> 28.50
G35: 1 | H35: 10.00 | K35: 1.50 | L35: 4.00 | M35: 60.00
G36: 1 | H36: 20.50 | K36: 1.50 | L36: 0.50 | M36: 15.38
G37: 1 | H37: 8.00 | K37: 1.50 | L37: 1.00 | M37: 12.00
G38: 1 | H38: 10.00 | K38: 2.00 | L38: 0.50 | M38: 10.00
G39: 1 | H39: 11.00 | K39: 2.00 | L39: 1.00 | M39: 22.00
G40: 1 | H40: 4.50 | K40: 1.50 | L40: 1.00 | M40: 6.75
G41: 1 | H41: 18.00 | K41: 5.00 | L41: 0.50 | M41: 45.00
G42: 1 | H42: 8.00 | K42: 3.00 | L42: 2.00 | M42: 48.00
G43: 1 | H43: 22.50 | K43: 2.00 | L43: 2.00 | M43: 90.00
G44: 1 | H44: 11.00 | K44: 4.00 | L44: 1.00 | M44: 44.00
G45: 1 | H45: 6.00 | K45: 3.00 | L45: 1.00 | M45: 18.00
G46: 1 | H46: 10.00 | K46: 2.00 | L46: 1.00 | M46: 20.00
G47: 1 | H47: 13.00 | K47: 1.00 | L47: 1.00 | M47: =H47*K47*L47*G47 -> 13.00
G48: 1 | H48: 33.00 | K48: 3.00 | L48: 1.50 | M48: 148.50
G49: 1 | H49: 8.00 | K49: 1.00 | L49: 1.00 | M49: 8.00
G50: 1 | H50: 15.00 | K50: 2.50 | L50: 1.50 | M50: 56.25
G51: 1 | H51: 37.00 | K51: 1.50 | L51: 1.00 | M51: 55.50
G52: 1 | H52: 25.00 | K52: 2.00 | L52: 2.00 | M52: 100.00
G53: 1 | H53: 8.00 | K53: 5.00 | L53: 1.00 | M53: 40.00
G54: 1 | H54: 28.00 | K54: 5.00 | L54: 1.50 | M54: 210.00
C55: ='2.Sub Base'!B16 -> Road 1 | G55: 1.00 | H55: ='2.Sub Base'!D16 -> 203.00 | K55: ='2.Sub Base'!G16 -> 13.00 | L55: 0.50 | M55: 1319.50
C56: ='2.Sub Base'!B17 -> Road 2 | G56: 1.00 | H56: ='2.Sub Base'!D17 -> 225.00 | K56: ='2.Sub Base'!G17 -> 14.00 | L56: 0.50 | M56: 1575.00
C57: ='2.Sub Base'!B18 -> Road 3 | G57: 1.00 | H57: ='2.Sub Base'!D18 -> 276.00 | K57: ='2.Sub Base'!G18 -> 15.00 | L57: 0.50 | M57: 2070.00
C58: ='2.Sub Base'!B19 -> Road 4 | G58: 1.00 | H58: ='2.Sub Base'!D19 -> 343.00 | K58: ='2.Sub Base'!G19 -> 23.67 | L58: 0.50 | M58: 4059.41
B59: Total Quantity (Cft) = | M59: =SUM(M7:M58) -> 18319.71
B60: Already Paid Quantity (CFT) = | M60: 6919.93
B61: This Bill Quantity (CFT) = | M61: =M59-M60 -> 11399.78
A68: Quantity Surveyor:___________________ | L68: Quantity Surveyor:______________
A69: Contractor: | L69: Consultant:

Sheet 2.Sub Base
A1: =+'1.Dismantling PCC'!A1:N1 -> PROJECT NAME
B2: Contractor:- | I2: Client : | M2: Consultant:
A3: IPC NO. 03
A4: ='Abstract of Cost'!B31 -> Providing and laying sub-base course of stone product of approved quality and grade including placing, mixing, spreading and compaction of sub-base material to required depth, camber, grade to achieve 100% maximum modified AASHO dry density, including carriage of all material to site of work except gravel and aggregate.
A5: Sr.No | B5: Reduced Distance | C5: No | D5: L | E5: Width | H5: Reduced Level | L5: Depths | O5: Qty.
E6: Start | F6: End | G6: Avr. | H6: Start | J6: End | L6: Start | M6: End | N6: Average
A7: 1 | B7: =A7+A7 -> 2 | C7: =B7+1 -> 3 | D7: =C7+1 -> 4 | E7: =D7+1 -> 5 | F7: =E7+1 -> 6 | G7: =F7+1 -> 7 | H7: Bed | I7: Sub Base | J7: Bed | K7: Sub Base | L7: =K8+1 -> 12 | M7: =L7+1 -> 13 | N7: =M7+1 -> 14 | O7: =N7+1 -> 15
G8: (5+6)/2 | H8: =G7+1 -> 8 | I8: =H8+1 -> 9 | J8: =I8+1 -> 10 | K8: =J8+1 -> 11 | L8: (9-8) | M8: (11-10) | N8: (12+13)/2 | O8: (3x4x7x14)
B9: 1800 RD to 1900 RD | C9: 1 | D9: 100 | E9: 25.83 | F9: 23.17 | G9: =(E9+F9)/2 -> 24.50 | H9: 98.39 | I9: 99.24 | J9: 98.24 | K9: =100.08-0.83 -> 99.25 | L9: =I9-H9 -> 0.85 | M9: =K9-J9 -> 1.01 | N9: =(L9+M9)/2 -> 0.93 | O9: =D9*G9*N9 -> 2278.50
B10: 1900 RD to 2000 RD | C10: 1 | D10: =D9 -> 100 | E10: =F9 -> 23.17 | F10: 24.66 | G10: 23.92 | H10: =J9 -> 98.24 | I10: 99.25 | J10: 98.68 | K10: =100.1-0.83 -> 99.27 | L10: 1.01 | M10: 0.59 | N10: =(L10+M10)/2 -> 0.8 | O10: =D10*G10*N10 -> 1913.20
B11: 2000 RD to 2100 RD | C11: 1 | D11: 100 | E11: 24.66 | F11: 23.00 | G11: 23.83 | H11: 98.68 | I11: 99.27 | J11: 98.17 | K11: =100.11-0.83 -> 99.28 | L11: 0.59 | M11: 1.11 | N11: 0.85 | O11: 2025.55
B12: 2100 RD to 2200 RD | C12: 1 | D12: 100 | E12: 23.00 | F12: =(35+29+30)/3 -> 31.33 | G12: 27.17 | H12: 98.17 | I12: 99.28 | J12: 98.60 | K12: =100.12-0.83 -> 99.29 | L12: 1.11 | M12: 0.69 | N12: 0.9 | O12: 2445.00
B13: 2200 RD to 2270 RD | C13: 1 | D13: 70 | E13: 31.33 | F13: 27.00 | G13: 29.17 | H13: 98.60 | I13: 99.29 | J13: 98.24 | K13: =100.13-0.83 -> 99.30 | L13: 0.69 | M13: 1.06 | N13: 0.875 | O13: 1786.46
B14: Deduction Manhole | C14: -28 | D14: 3.14 | H14: =1.67*1.67 -> 2.79 | N14: =SUM(N9:N13)/5 -> 0.871 | O14: =PRODUCT(C14:N14) -> -213.57
B15: Deduction Gully Grating | C15: -48 | D15: 3.00 | H15: 2.50 | N15: 0.66 | O15: =PRODUCT(C15:N15) -> -237.60
B16: Road 1 | C16: 1 | D16: 203.00 | G16: 13.00 | N16: 0.5 | O16: =D16*G16*N16 -> 1319.50
B17: Road 2 | C17: 1 | D17: 225.00 | G17: 14.00 | N17: 0.5 | O17: =D17*G17*N17 -> 1575.00
B18: Road 3 | C18: 1 | D18: 276.00 | G18: 15.00 | N18: 0.5 | O18: 2070.00
B19: Road 4 | C19: 1 | D19: 343.00 | G19: 23.67 | N19: 0.5 | O19: 4059.41
B20: Deduction Manhole | C20: -12 | D20: 3.14 | G20: =1.75*1.75 -> 3.06 | N20: 0.5 | O20: =D20*G20*N20*C20 -> -57.73
B21: Total Quantity (Cft) = | O21: =SUM(O9:O20) -> 18963.71
B22: Already Paid Quantity (CFT) = | O22: 10037.14
B23: This Bill Quantity (CFT) = | O23: =O21-O22 -> 8926.57
A25: Quantity Surveyor:___________________ | K25: Quantity Surveyor:___________________
A26: Contractor: | L26: Consultant:

Sheet 3 Dry Rammed (hidden)
A1: CONSTRUCTION OF ROAD FROM FEROZEPUR ROAD TO ANAM ROAD, LAHORE
B2: Contractor:- M/s Stallions Construction Co. | E2: Client : LDA | J2: Consultant: NESPAK (Pvt) Ltd.
A3: IPC NO. 03
A4: Dry rammed brick ballast 1.5" to 2" gauge Ch. 6 Page 41 item 2
A5: S.No. | B5: IPC No. | C5: Chainage | E5: No. | F5: Length (ft) | G5: Width (ft) | J5: Avg. Thickness (ft) | K5: Quantity (Cft) | L5: Remarks
C6: From | D6: To | G6: Start | H6: End | I6: Average
B7: New Manhole | E7: 6 | F7: 3.14 | I7: =3.5*3.5 -> 12.25 | J7: 1.00 | K7: =PRODUCT(E7:J7) -> 230.79
B8: Total Quantity (Cft) = | K8: =SUM(K7) -> 230.79
B9: Already Paid Quantity (CFT) = | K9: 230.79
B10: This Bill Quantity (CFT) = | K10: =K8-K9 -> 0.00
A14: Quantity Surveyor:___________________ | J14: Quantity Surveyor:______________
A15: M/s Stallions Construction Co. | J15: NESPAK (Pvt) Limited

Sheet 4. Stone Ballast (hidden)
A1: CONSTRUCTION OF ROAD FROM FEROZEPUR ROAD TO ANAM ROAD, LAHORE
B2: Contractor:- M/s Stallions Construction Co. | E2: Client : LDA | J2: Consultant: NESPAK (Pvt) Ltd.
A3: IPC NO. 03
A4: ='Abstract of Cost'!B35 -> Cement concrete brick or stone ballast 1.5" to 2" gauge, in foundation and plinth ( 1 : 6 : 12) Ch. 6 Page 41 item 3
A5: S.No. | B5: IPC No. | C5: Chainage | E5: No. | F5: Length (ft) | G5: Width (ft) | J5: Avg. Thickness (ft) | K5: Quantity (Cft) | L5: Remarks
C6: From | D6: To | G6: Start | H6: End | I6: Average
B7: New Manhole | E7: 6 | F7: 3.14 | H7: 3.00 | I7: 3.00 | J7: 0.75 | K7: =PRODUCT(E7:J7) -> 127.17
B9: Total Quantity (Cft) = | K9: =SUM(K7:K8) -> 127.17
B10: Already Paid Quantity (CFT) = | K10: 127.17
B11: This Bill Quantity (CFT) = | K11: =K9-K10 -> 0.00
A15: Quantity Surveyor:___________________ | J15: Quantity Surveyor:______________
A16: M/s Stallions Construction Co. | J16: NESPAK (Pvt) Limited

Sheet 5. Brickwork (hidden)
A1: CONSTRUCTION OF ROAD FROM FEROZEPUR ROAD TO ANAM ROAD, LAHORE
B2: Contractor:- M/s Stallions Construction Co. | D2: Client : LDA | I2: Consultant: NESPAK (Pvt) Ltd.
A3: IPC NO. 03
A4: ='Abstract of Cost'!B37 -> Pacca brick work other than building upto 10ft. (3 m) height. i) cement, sand mortar:- Ratio 1:3 + Extra for pacca brick work in steining of wells or any other circular masonry.(Rs.43,862.40 + Rs.3,707.30).
A5: S.No. | B5: IPC No. | C5: Date | D5: No. | E5: Length (ft) | F5: Width (ft) | I5: Avg. Thickness (ft) | J5: Quantity (Cft) | K5: Remarks
F6: Start | G6: End | H6: Average
C8: Repair of 36" dia | D8: 22 | E8: 3.14 | G8: 0.75 | H8: =(2.58+6.75)/2 -> 4.67 | I8: 3.00 | J8: =PRODUCT(D8:I8) -> 725.08 | K8: Dome
C9: 9" dia manhole | D9: 6 | E9: 3.14 | G9: 0.75 | H9: 5.25 | I9: 1.16 | J9: =PRODUCT(D9:I9) -> 86.05
C10: 9" dia manhole | D10: 6 | E10: 3.14 | G10: 0.75 | H10: =(2.58+5.25)/2 -> 3.92 | I10: 3.00 | J10: =PRODUCT(D10:I10) -> 165.96 | K10: Dome
C11: D/D for pipe | D11: -12 | E11: 3.14 | G11: =1.125/2 -> 0.56 | H11: =1.125/2 -> 0.56 | I11: 0.75 | J11: =PRODUCT(D11:I11) -> -8.94
B12: Total Quantity (Cft) = | J12: =SUM(J8:J11) -> 968.15 | N12: =1.125/2 -> 0.5625
B13: Already Paid Quantity (CFT) = | J13: 968.15
B14: This Bill Quantity (CFT) = | J14: =J12-J13 -> 0.00
A18: Quantity Surveyor:___________________ | I18: Quantity Surveyor:______________
A19: M/s Stallions Construction Co. | I19: NESPAK (Pvt) Limited

Sheet 6. Plaster (hidden)
A1: CONSTRUCTION OF ROAD FROM FEROZEPUR ROAD TO ANAM ROAD, LAHORE
B2: Contractor:- M/s Stallions Construction Co. | D2: Client : LDA | I2: Consultant: NESPAK (Pvt) Ltd.
A3: IPC NO. 03
A4: ='Abstract of Cost'!B39 -> Cement plaster 1:3 upto 20' (6.00 m) height:-b) ½" (13 mm) thick
A5: S.No. | B5: IPC No. | C5: Date | D5: No. | E5: Length (ft) | F5: Width (ft) | I5: Avg. Thickness (ft) | J5: Quantity (Cft) | K5: Remarks
F6: Start | G6: End | H6: Average
C8: Repair of 36" dia | D8: 22 | E8: 3.14 | H8: =(3.33+7.5)/2 -> 5.42 | I8: 3.00 | J8: =PRODUCT(D8:I8) -> 1122.20 | K8: Dome | L8: =1.83+0.75+0.75 -> 3.33 | M8: =6.75+0.75 -> 7.5 | N8: =(M8+L8)/2 -> 5.415
C9: 9" dia manhole | D9: 6 | E9: 3.14 | H9: 6.00 | I9: 1.16 | J9: =PRODUCT(D9:I9) -> 131.13 | L9: =6-1.5 -> 4.5
C10: 9" dia manhole | D10: 6 | E10: 3.14 | H10: =(3.33+6)/2 -> 4.67 | I10: 3.00 | J10: =PRODUCT(D10:I10) -> 263.67 | K10: Dome
C11: D/D for pipe | D11: -12 | E11: 3.14 | H11: =1.125/2 -> 0.56 | I11: =1.125/2 -> 0.56 | J11: =PRODUCT(D11:I11) -> -11.92 | L11: =0.75+0.16+0.16 -> 1.07 | M11: =1.125/2 -> 0.5625
B12: Total Quantity (Sft) = | J12: =SUM(J8:J11) -> 1505.07
B13: Already Paid Quantity (SFT) = | J13: 1505.07
B14: This Bill Quantity (SFT) = | J14: =J12-J13 -> 0.00
A18: Quantity Surveyor:___________________ | I18: Quantity Surveyor:______________
A19: M/s Stallions Construction Co. | I19: NESPAK (Pvt) Limited

Sheet 7.Pointing (hidden)
A1: CONSTRUCTION OF ROAD FROM FEROZEPUR ROAD TO ANAM ROAD, LAHORE
B2: Contractor:- M/s Stallions Construction Co. | D2: Client : LDA | I2: Consultant: NESPAK (Pvt) Ltd.
A3: IPC NO. 03
A4: ='Abstract of Cost'!B41 -> Cement pointing flush upto 20' height in (1:2) Ch. 11 Page 76 item 16
A5: S.No. | B5: IPC No. | C5: Date | D5: No. | E5: Length (ft) | F5: Width (ft) | I5: Avg. Thickness (ft) | J5: Quantity (Cft) | K5: Remarks
F6: Start | G6: End | H6: Average
C7: Repair of 36" dia | D7: 22 | E7: 3.14 | H7: =(1.83+6)/2 -> 3.92 | I7: 3.00 | J7: =PRODUCT(D7:I7) -> 811.34 | K7: Dome | L7: =1.83 -> 1.83 | M7: =6 -> 6 | N7: =(M7+L7)/2 -> 3.915
C8: 9" dia manhole | D8: 6 | E8: 3.14 | H8: 4.50 | I8: 1.16 | J8: =PRODUCT(D8:I8) -> 98.34 | L8: =(5+1.83)/2 -> 3.415
C9: 9" dia manhole | D9: 6 | E9: 3.14 | H9: =(1.83+4.5)/2 -> 3.17 | I9: 3.00 | J9: =PRODUCT(D9:I9) -> 178.89 | K9: Dome
C10: D/D for pipe | D10: -12 | E10: 3.14 | H10: =1.125/2 -> 0.56 | I10: =1.125/2 -> 0.56 | J10: =PRODUCT(D10:I10) -> -11.92 | L10: =0.75+0.16+0.16 -> 1.07
B11: Total Quantity (Cft) = | J11: =SUM(J7:J10) -> 1076.65
B12: Already Paid Quantity (CFT) = | J12: 1076.65
B13: This Bill Quantity (CFT) = | J13: =J11-J12 -> 0.00
A17: Quantity Surveyor:___________________ | I17: Quantity Surveyor:______________
A18: M/s Stallions Construction Co. | I18: NESPAK (Pvt) Limited

Sheet 8. PCC148 (hidden)
A1: CONSTRUCTION OF ROAD FROM FEROZEPUR ROAD TO ANAM ROAD, LAHORE
B2: Contractor:- M/s Stallions Construction Co. | D2: Client : LDA | I2: Consultant: NESPAK (Pvt) Ltd.
A3: IPC NO. 03
A4: ='Abstract of Cost'!B43 -> Cement concrete plain including placing , compacting finishing and curing complete ( including washing of stone aggregate) Ch. 6 Page 2 item 5) (1:4:8)
A5: S.No. | B5: IPC No. | C5: Date | D5: No. | E5: Length (ft) | F5: Width (ft) | I5: Avg. Thickness (ft) | J5: Quantity (Cft) | K5: Remarks
F6: Start | G6: End | H6: Average
B7: 1400-RD to 1500 RD | D7: 1 | E7: 100 | H7: 24.75 | I7: =2/12 -> 0.17 | J7: =PRODUCT(D7:I7) -> 412.42
B8: 1500 RD to 1600 RD | D8: 1 | E8: =E7 -> 100 | H8: 24.91 | I8: =2/12 -> 0.17 | J8: 415.17
B9: 1600 RD to 1700 RD | D9: 1 | E9: 100 | H9: 25.71 | I9: 0.17 | J9: 428.50
B10: 1700 RD to 1800 RD | D10: 1 | E10: 100 | H10: 26.00 | I10: 0.17 | J10: 433.33
B11: 1800 RD to 1900 RD | D11: 1 | E11: 100 | H11: 24.50 | I11: 0.17 | J11: =PRODUCT(D11:I11) -> 408.33
B12: 1900 RD to 2000 RD | D12: 1 | E12: 100 | H12: 23.92 | I12: 0.17 | J12: 398.58 | L12: =H12-24 -> -0.09
B13: 2000 RD to 2100 RD | D13: 1 | E13: 100 | H13: 23.83 | I13: 0.17 | J13: 397.17 | L13: =H13-24 -> -0.17
B14: 2100 RD to 2200 RD | D14: 1 | E14: 100 | H14: 27.17 | I14: 0.17 | J14: 452.78 | L14: =H14-24 -> 3.17
B15: 2200 RD to 2300 RD | D15: 1 | E15: 100 | H15: 29.17 | I15: 0.17 | J15: 486.11
B16: 2300 RD to 2370 RD | D16: 1 | E16: 100 | H16: 29.17 | I16: 0.17 | J16: =PRODUCT(D16:I16) -> 486.11
B17: Chowk | D17: 0.5 | E17: 37 | H17: 30.00 | I17: 0.17 | J17: 92.50
B18: Deduction Manhole | D18: -28 | E18: 3.14 | G18: =3.33/2 -> 1.67 | H18: =3.33/2 -> 1.67 | I18: 0.17 | J18: =PRODUCT(D18:I18) -> -40.62 | O18: =2370-1400 -> 970
B19: Deduction Gully Grating | D19: -40 | E19: 3 | H19: 2.50 | I19: 0.17 | J19: =PRODUCT(D19:I19) -> -50.00
B20: Total Quantity (Cft) = | J20: =SUM(J7:J19) -> 4320.38
B21: Already Paid Quantity (CFT) = | J21: 4320.38
B22: This Bill Quantity (CFT) = | J22: =J20-J21 -> 0.00
A26: Quantity Surveyor:___________________ | I26: Quantity Surveyor:______________
A27: M/s Stallions Construction Co. | I27: NESPAK (Pvt) Limited

Sheet 9. Steel R (hidden)
A1: CONSTRUCTION OF ROAD FROM FEROZEPUR ROAD TO ANAM ROAD, LAHORE
B2: Contractor:- M/s Stallions Construction Co. | D2: Client : LDA | I2: Consultant: NESPAK (Pvt) Ltd.
A3: IPC NO. 03
A4: ='Abstract of Cost'!B45 -> Fabrication of mild steel reinforcement for cement concrete , including cutting ,bending laying in position, making joints, and fastening including the cost of binding wire and labour charges for binding of steel reinforcement (also includes removal of
A5: S.No. | B5: IPC No. | C5: Date | D5: No. | E5: Length (ft) | F5: Width (ft) | I5: Avg. Thickness (ft) | J5: Quantity (Cft) | K5: Remarks
F6: Start | G6: End | H6: Average
D7: Spacing | E7: Dia# | F7: No of Member | G7: No | H7: Cut Length | I7: Unit Weight in KG | J7: Total Weight in KG
B8: 75x24 Panal
B9: Main Bars | D9: 7"c/c | E9: 4 | F9: 2 | G9: =75/0.58+1 -> 130 | H9: 11.75 | I9: =(E9*E9/24)/2.204 -> 0.302 | J9: =PRODUCT(F9:I9) -> 926.28
B10: Disst Bars | D10: 7"c/c | E10: 4 | F10: 2 | G10: =12/0.58+1 -> 22 | H10: 75.00 | I10: =(E10*E10/24)/2.204 -> 0.302 | J10: =PRODUCT(F10:I10) -> 984.10 | O10: =2370-1400 -> 970 | P10: =O10*24 -> 23280.00
B11: Tie Bars | D11: 12'' c/c | E11: 4 | F11: 1.00 | G11: 76.00 | H11: 3.00 | I11: =(E11*E11/24)/2.204 -> 0.302 | J11: =PRODUCT(F11:I11) -> 68.97
B12: Dowel Bars | D12: 12'' c/c | E12: 8 | F12: 2.00 | G12: 12.00 | H12: 3.00 | I12: =(E12*E12/24)/2.204 -> 1.210 | J12: =PRODUCT(F12:I12) -> 87.11
B13: Total Steel in KG for (75x24)=1800 Sft Area | J13: =SUM(J9:J12) -> 2066.47 | P13: =75*24 -> 1800
B14: Steel in KG for per Sft | J14: =J13/1800 -> 1.15
B15: Regid Area | J15: 23282.77
B16: Total Steel Qty | J16: =J15*J14 -> 26729.49
B17: Already Paid | J17: 26729.49
B18: This Bill | J18: =J16-J17 -> 0.00
A20: Quantity Surveyor:___________________ | I20: Quantity Surveyor:______________
A21: M/s Stallions Construction Co. | I21: NESPAK (Pvt) Limited

Sheet 9. Steel M (hidden)
A1: CONSTRUCTION OF ROAD FROM FEROZEPUR ROAD TO ANAM ROAD, LAHORE
B2: Contractor:- M/s Stallions Construction Co. | D2: Client : LDA | I2: Consultant: NESPAK (Pvt) Ltd.
A3: IPC NO. 03
A4: ='Abstract of Cost'!B45 -> Fabrication of mild steel reinforcement for cement concrete , including cutting ,bending laying in position, making joints, and fastening including the cost of binding wire and labour charges for binding of steel reinforcement (also includes removal of
A5: S.No. | B5: IPC No. | C5: Date | D5: No. | E5: Length (ft) | F5: Width (ft) | I5: Avg. Thickness (ft) | J5: Quantity (Cft) | K5: Remarks
F6: Start | G6: End | H6: Average
D7: Spacing | E7: Dia# | F7: No | G7: No of Member | H7: Cut Length | I7: Unit Weight in KG | J7: Total Weight in KG
B8: 75x24 Panal
B9: Circular Bars Outer | E9: 4 | F9: 2 | G9: 28 | H9: =3.14*3.08 -> 9.67 | I9: =(E9*E9/24)/2.204 -> 0.302 | J9: =PRODUCT(F9:I9) -> 163.82
B10: Circular Bars Mid | E10: 4 | F10: 2 | G10: 28 | H10: =3.14*2.58 -> 8.10 | I10: 0.302 | J10: 137.23 | O10: =2370-1400 -> 970 | P10: =O10*24 -> 23280.00
B11: Circular Bars Inner | E11: 4 | F11: 1 | G11: 28 | H11: =3.14*2.16 -> 6.78 | I11: 0.302 | J11: 57.44
B12: Bottom Main Bars | E12: 4 | F12: 8 | G12: 28 | H12: 0.66 | I12: 0.302 | J12: 44.72
B13: Top Main Bars | E13: 4 | F13: 8 | G13: 28 | H13: 0.38 | I13: 0.302 | J13: 25.41
B14: Vertical Bars | E14: 0 | F14: 8 | G14: 28 | H14: 0.38 | I14: 0.000 | J14: 0.00
B15: Total Steel in KG | J15: =SUM(J9:J14) -> 428.62 | P15: =75*24 -> 1800
B16: Already Paid | J16: 428.62 | P16: =75*24 -> 1800
B17: This Bill | J17: =J15-J16 -> 0.00 | P17: =75*24 -> 1800
A18: Quantity Surveyor:___________________ | I18: Quantity Surveyor:______________
A19: M/s Stallions Construction Co. | I19: NESPAK (Pvt) Limited

Sheet 10. RCC (hidden)
A1: CONSTRUCTION OF ROAD FROM FEROZEPUR ROAD TO ANAM ROAD, LAHORE
B2: Contractor:- M/s Stallions Construction Co. | D2: Client : LDA | I2: Consultant: NESPAK (Pvt) Ltd.
A3: IPC NO. 03
A4: ='Abstract of Cost'!B47 -> Providing and laying reinforceed cement concrete (including pre stressed concrete), using coarse sand and screened graded and washed aggregate , in required shape and design, including form moulds, shuttering, lifting, compacting, curing, rendering,and fi b) Precast reinforced cement concrete and prestressed reinforced cement concrete in columns, beams, lintels, stair cases, shelves, etc. :- a (1:1.5:3)
A5: S.No. | B5: IPC No. | C5: Date | D5: No. | E5: Length (ft) | F5: Width (ft) | I5: Avg. Thickness (ft) | J5: Quantity (Cft) | K5: Remarks
F6: Start | G6: End | H6: Average
B7: 1400-RD to 1500 RD | D7: 1 | E7: 100 | H7: 24.00 | I7: =8/12 -> 0.67 | J7: =PRODUCT(D7:I7) -> 1600.00 | L7: 24.75
B8: 1500 RD to 1600 RD | D8: 1 | E8: =E7 -> 100 | H8: 24.00 | I8: 0.67 | J8: 1600.00 | L8: 24.91
B9: 1600 RD to 1700 RD | D9: 1 | E9: 100 | H9: 24.00 | I9: 0.67 | J9: 1600.00 | L9: 25.71
B10: 1700 RD to 1800 RD | D10: 1 | E10: 100 | H10: 24.00 | I10: 0.67 | J10: 1600.00 | L10: 26.00
B11: 1800 RD to 1900 RD | D11: 1 | E11: 100 | H11: 24.00 | I11: 0.67 | J11: 1600.00 | L11: 24.50
B12: 1900 RD to 2000 RD | D12: 1 | E12: =E11 -> 100 | H12: 23.92 | I12: 0.67 | J12: 1594.33 | L12: 23.92
B13: 2000 RD to 2100 RD | D13: 1 | E13: 100 | H13: 24.00 | I13: 0.67 | J13: 1600.00 | L13: 23.83
B14: 2100 RD to 2200 RD | D14: 1 | E14: 100 | H14: 24.00 | I14: 0.67 | J14: 1600.00 | L14: 27.17
B15: 2200 RD to 2300 RD | D15: 1 | E15: 100 | H15: 24.00 | I15: 0.67 | J15: 1600.00 | L15: 29.17
B16: 2300 RD to 2370 RD | D16: 1 | E16: 70 | H16: 24.00 | I16: 0.67 | J16: =PRODUCT(D16:I16) -> 1120.00 | L16: 29.17
B17: 1400 to 2370 | D17: 0.5 | E17: 37 | H17: 30.00 | I17: 0.67 | J17: =PRODUCT(D17:I17) -> 370.00
B18: Deduction Manhole | D18: -28 | E18: 3.14 | G18: =3.33/2 -> 1.67 | H18: =3.33/2 -> 1.67 | I18: 0.67 | J18: -162.49 | O18: =2370-1400 -> 970
B19: Deduction Gully Grating | D19: -40 | E19: 3 | H19: 2.50 | I19: 0.67 | J19: -200.00
B20: Deduction Theremopore | D20: -13 | E20: 24 | H20: 0.08 | I20: 0.67 | J20: -16.64
B21: Deduction Marble Strip | D21: -624 | E21: 24 | H21: 0.03 | I21: 0.13 | J21: -56.16 | M21: 1.83 | N21: =1.83+1.5 -> 3.33
B22: Around Manhole | D22: 28 | E22: 3.14 | G22: 2.58 | H22: 0.75 | I22: 0.67 | J22: 113.42 | N22: =(M21+N21)/2 -> 2.58
B23: Total Quantity (Cft) = | J23: =SUM(J7:J22) -> 15562.46
B24: Already Paid Quantity (CFT) = | J24: 15562.46
B25: This Bill Quantity (CFT) = | J25: =J23-J24 -> 0.00
A29: Quantity Surveyor:___________________ | I29: Quantity Surveyor:______________
A30: M/s Stallions Construction Co. | I30: NESPAK (Pvt) Limited

Sheet 11.UPVC (hidden)
A1: CONSTRUCTION OF ROAD FROM FEROZEPUR ROAD TO ANAM ROAD, LAHORE
B2: Contractor:- M/s Stallions Construction Co. | D2: Client : LDA | I2: Consultant: NESPAK (Pvt) Ltd.
A3: IPC NO. 03
A4: ='Abstract of Cost'!B50 -> Providing, fixing, testing and commissioning of µ-PVC (Unplasticized Polyvinyl Chloride ) Nikasi/ waste pipe make of Dadex /Popular/Beta or equivalent, plain /socket ended conforming to code EN-1329 of specified SDR (Standard Dimension Ratio) including the cost of specials and Solvents complete in all respect as approved and directed by the Engineer Incharge. Ch 19 Page 118 Item 47 b (2" Dia)
A5: S.No. | B5: IPC No. | C5: Date | D5: No. | E5: Length (ft) | F5: Width (ft) | I5: Avg. Thickness (ft) | J5: Quantity (Cft) | K5: Remarks
F6: Start | G6: End | H6: Average
C8: 1400 to 2370 | D8: =13*24 -> 312 | E8: 1.5 | J8: =E8*D8 -> 468.00 | K8: Update | M8: =970/75 -> 12.93333333
B12: Total Quantity (RFT) = | J12: =SUM(J8:J11) -> 468.00
B13: Already Paid Quantity (RFT) = | J13: 468.00
B14: This Bill Quantity (RFT) = | J14: =J12-J13 -> 0.00
A18: Quantity Surveyor:___________________ | I18: Quantity Surveyor:______________
A19: M/s Stallions Construction Co. | I19: NESPAK (Pvt) Limited

Sheet 12 RCC Cover
A1: =+'2.Sub Base'!A1:O1 -> PROJECT NAME
B2: Contractor:- | D2: Client : | I2: Consultant:
A3: IPC NO. 03
A4: ='Abstract of Cost'!B54 -> Providing and fixing, 6" (150 mm) thick R.C.C. manhole cover for 22" as per standard drawing STD/PD No. 6 of 1977, complete in all respects. I/C FRAME COMPLETE IN ALL RESPECT
A5: S.No. | B5: IPC No. | C5: Date | D5: No. | E5: Length (ft) | F5: Width (ft) | I5: Avg. Thickness (ft) | J5: Quantity (Cft) | K5: Remarks
F6: Start | G6: End | H6: Average
D7: 28 | J7: =D7 -> 28.00
B10: Total Quantity (Each) = | J10: =SUM(J7:J9) -> 28.00
B11: Already Paid Quantity (Each) =
B12: This Bill Quantity (Each) = | J12: =J10-J11 -> 28.00
A16: Quantity Surveyor:___________________ | I16: Quantity Surveyor:______________
A17: Contractor: | I17: Consultant:

Sheet Analysis Rcc cover 6"
A1: ANALYSIS OF RATE FOR OF MANHOLE COVER I/C FRAME COMPLETE IN ALL RESPECT
A2: MRS REF | B2: Description | C2: Rate | D2: Quantity | E2: Amount | F2: Unit
A3: Chapter-21 Item 17 | B3: Providing and fixing, 6" (150 mm) thick R.C.C. manhole cover for 22" as per standard drawing STD/PD No. 6 of 1977, complete in all respects. | C3: 7949.90 | D3: 1.00 | E3: =D3*C3 -> 7949.90 | F3: Each
A4: Chapter-21 Item 14 | B4: Fixing manhole frame and cover in R.C.C. slab including carriage to site. | C4: 537.25 | D4: 1.00 | E4: =D4*C4 -> 537.25 | F4: Each
A5: NPUT RATES OF MATERIAL FOR 1st BI-ANNUAL-2024 (01.01.2024 TO 30.06.2024) 18.014 | B5: T.Iron and M.S Flat | C5: =259 -> 259.00 | D5: 25.00 | E5: 6475.00 | F5: KG
B6: Total | E6: =SUM(E3:E5) -> 14962.15
B7: Add 20 % contractor profit on item no 3 | E7: =E5*20% -> 1295.00
B8: Rate Per No | E8: =SUM(E6:E7) -> 16257.15 | F8: Per Set

Sheet 13.RCC Pipe 9" (hidden)
A1: CONSTRUCTION OF ROAD FROM FEROZEPUR ROAD TO ANAM ROAD, LAHORE
B2: Contractor:- M/s Stallions Construction Co. | D2: Client : LDA | I2: Consultant: NESPAK (Pvt) Ltd.
A3: IPC NO. 03
A4: ='Abstract of Cost'!B56 -> Providing and laying R.C.C. pipe, moulded with cement concrete 1:1½:3, with spigot socket or collar joint, etc. including cost of reinforcement, conforming to B.S. 5911: Part I: 1981, Class "L" including carriage of pipe from factory to site of work, lowering in trenches to correct alignment and grade, jointing, cutting pipes where necessary, finishing and testing, etc., complete. Chapter - 21 Page 136 Item 01 (9" dia)
A5: S.No. | B5: IPC No. | C5: Date | D5: No. | E5: Length (ft) | F5: Width (ft) | I5: Avg. Thickness (ft) | J5: Quantity (Cft) | K5: Remarks
F6: Start | G6: End | H6: Average
C8: 1400 to 2370 | D8: 1 | E8: 256 | J8: =E8*D8 -> 256.00 | M8: =970/75 -> 12.93333333
D9: 1 | E9: 56 | J9: =E9*D9 -> 56.00
B12: Total Quantity (RFT) = | J12: =SUM(J8:J11) -> 312.00
B13: Already Paid Quantity (RFT) = | J13: 312.00
B14: This Bill Quantity (RFT) = | J14: =J12-J13 -> 0.00
A18: Quantity Surveyor:___________________ | I18: Quantity Surveyor:______________
A19: M/s Stallions Construction Co. | I19: NESPAK (Pvt) Limited

Sheet 14. Select Fill (hidden)
A1: CONSTRUCTION OF ROAD FROM FEROZEPUR ROAD TO ANAM ROAD, LAHORE
B2: Contractor:- M/s Stallions Construction Co. | D2: Client : LDA | I2: Consultant: NESPAK (Pvt) Ltd.
A3: IPC NO. 03
A4: ='Abstract of Cost'!B58 -> P/L of Select Fill material including ploughing and mixing with blade grade or disc harrow or other suitable equipment and compaction by mechanical means at OMC and dressing to designed section, complete in all respect 95% to 100% maximum modified AASHTO dry-density with vibratory roller.Mixing, Moisterning earth to optimum moisture contant in layer etc. complete with tractor complete with rotorator blade.
A5: S.No. | B5: IPC No. | C5: Date | D5: No. | E5: Length (ft) | F5: Width (ft) | I5: Avg. Thickness (ft) | J5: Quantity (Cft) | K5: Remarks
F6: Start | G6: End | H6: Average
B7: Rcc Pipe 9" dia | D7: 1 | E7: =312-42 -> 270 | H7: 2.25 | I7: 2.92 | J7: =PRODUCT(D7:I7) -> 1773.90
B8: Deduction of Pipe Dia | D8: =-312+42 -> -270 | E8: 3.14 | H8: =1.08/2 -> 0.54 | I8: =1.08/2 -> 0.54 | J8: =PRODUCT(D8:I8) -> -247.22 | N8: =312-42 -> 270
B9: Total Quantity (Cft) = | J9: =SUM(J7:J8) -> 1526.68
B10: Already Paid Quantity (CFT) = | J10: 1526.68
B11: This Bill Quantity (CFT) = | J11: =J9-J10 -> 0.00
A15: Quantity Surveyor:___________________ | I15: Quantity Surveyor:______________
A16: M/s Stallions Construction Co. | I16: NESPAK (Pvt) Limited

Sheet 15.Desilting (hidden)
A1: CONSTRUCTION OF ROAD FROM FEROZEPUR ROAD TO ANAM ROAD, LAHORE
B2: Contractor:- M/s Stallions Construction Co. | D2: Client : LDA | I2: Consultant: NESPAK (Pvt) Ltd.
A3: IPC NO. 03
A4: ='Abstract of Cost'!B60 -> Desilting of Sewer through winch machine including hire chargfes for two No. winch machines, operator for operating of winch machines, POL, etc.complete in all respects. Sewer 36" Dia
A5: S.No. | B5: IPC No. | C5: Date | D5: No. | E5: Length (ft) | F5: Width (ft) | I5: Avg. Thickness (ft) | J5: Quantity (Cft) | K5: Remarks
F6: Start | G6: End | H6: Average
C7: 36" dia sewer | D7: 1 | E7: 800 | J7: =E7*D7 -> 800.00 | M7: =970/75 -> 12.93333333
C8: One side Anum Road | D8: 1 | E8: 800 | J8: =E8*D8 -> 800.00 | M8: =970/75 -> 12.93333333
C9: Other sdie Anum Road | D9: 1 | E9: 800 | J9: =E9*D9 -> 800.00 | M9: =970/75 -> 12.93333333
C10: Feroze Pur road | D10: 1 | E10: 1000 | J10: =E10*D10 -> 1,000.00 | M10: =970/75 -> 12.93333333
B11: Total Quantity (RFT) = | J11: =SUM(J7:J10) -> 3400.00
B12: Already Paid Quantity (RFT) = | J12: 3400.00
B13: This Bill Quantity (RFT) = | J13: =J11-J12 -> 0.00
A17: Quantity Surveyor:___________________ | I17: Quantity Surveyor:______________
A18: M/s Stallions Construction Co. | I18: NESPAK (Pvt) Limited

Sheet 16. theremopore (hidden)
A1: CONSTRUCTION OF ROAD FROM FEROZEPUR ROAD TO ANAM ROAD, LAHORE
B2: Contractor:- M/s Stallions Construction Co. | D2: Client : LDA | I2: Consultant: NESPAK (Pvt) Ltd.
A3: IPC NO. 03
A4: ='Abstract of Cost'!B62 -> Providing and fixing theremopore (foamed polythene) sheet in horizontal and vertical expansion joints: a) 1" (25 mm) thick thermopore sheet
A5: S.No. | B5: IPC No. | C5: Date | D5: No. | E5: Length (ft) | F5: Width (ft) | I5: Avg. Thickness (ft) | J5: Quantity (Cft) | K5: Remarks
F6: Start | G6: End | H6: Average
O7: =970/75 -> 12.93333333
C8: 1400 to 2370 | D8: 13 | E8: 24 | I8: 0.66 | J8: =PRODUCT(D8:I8) -> 205.92 | L8: =1.83+0.75+0.75 -> 3.33 | M8: =6.75+0.75 -> 7.5 | N8: =(M8+L8)/2 -> 5.415
B9: Total Quantity (Sft) = | J9: =SUM(J8:J8) -> 205.92
B10: Already Paid Quantity (SFT) = | J10: 205.92
B11: This Bill Quantity (SFT) = | J11: =J9-J10 -> 0.00
A15: Quantity Surveyor:___________________ | I15: Quantity Surveyor:______________
A16: M/s Stallions Construction Co. | I16: NESPAK (Pvt) Limited

Sheet 17. Bailing (hidden)
A1: CONSTRUCTION OF ROAD FROM FEROZEPUR ROAD TO ANAM ROAD, LAHORE
B2: Contractor:- M/s Stallions Construction Co. | G2: Client : LDA | J2: Consultant: NESPAK (Pvt) Ltd.
A3: IPC NO. 02
A4: ='Abstract of Cost'!#REF! -> 
A5: S.No. | B5: IPC No. | C5: ReQ.No | D5: Date | E5: No of Pups | F5: Day | G5: Hours | H5: Min | I5: Sec | J5: Quantity (Cft) | K5: Remarks
D7: 27.08.2024 | E7: 1 | F7: 1.00 | G7: 8.00 | H7: 60.00 | I7: 60.00 | J7: =E7*F7*G7*H7*I7 -> 28,800.00 | K7: 03 Pumps
D8: 28.08.2024 | E8: 1 | F8: 1.00 | G8: 8.00 | H8: 60.00 | I8: 60.00 | J8: =E8*F8*G8*H8*I8 -> 28,800.00
D9: 29.08.2024 | E9: 1 | F9: 1.00 | G9: 8.00 | H9: 60.00 | I9: 60.00 | J9: 28,800.00
D10: 30.08.2024 | E10: 1 | F10: 1.00 | G10: 8.00 | H10: 60.00 | I10: 60.00 | J10: 28,800.00
D11: 31.08.2024 | E11: 1 | F11: 1.00 | G11: 8.00 | H11: 60.00 | I11: 60.00 | J11: 28,800.00
D12: 01.09.2024 | E12: 1 | F12: 1.00 | G12: 8.00 | H12: 60.00 | I12: 60.00 | J12: 28,800.00
D13: 02.09.2024 | E13: 1 | F13: 1.00 | G13: 8.00 | H13: 60.00 | I13: 60.00 | J13: 28,800.00
D14: 03.09.2024 | E14: 1 | F14: 1.00 | G14: 8.00 | H14: 60.00 | I14: 60.00 | J14: 28,800.00
D15: 04.09.2024 | E15: 1 | F15: 1.00 | G15: 8.00 | H15: 60.00 | I15: 60.00 | J15: 28,800.00
D16: 05.09.2024 | E16: 1 | F16: 1.00 | G16: 8.00 | H16: 60.00 | I16: 60.00 | J16: 28,800.00
D17: 06.09.2024 | E17: 1 | F17: 1.00 | G17: 8.00 | H17: 60.00 | I17: 60.00 | J17: 28,800.00
D18: 07.09.2024 | E18: 1 | F18: 1.00 | G18: 8.00 | H18: 60.00 | I18: 60.00 | J18: 28,800.00
D19: 08.09.2024 | E19: 1 | F19: 1.00 | G19: 8.00 | H19: 60.00 | I19: 60.00 | J19: 28,800.00
D20: 09.09.2024 | E20: 1 | F20: 1.00 | G20: 8.00 | H20: 60.00 | I20: 60.00 | J20: 28,800.00
D21: 10.09.2024 | E21: 1 | F21: 1.00 | G21: 8.00 | H21: 60.00 | I21: 60.00 | J21: 28,800.00
D22: 11.09.2024 | E22: 1 | F22: 1.00 | G22: 8.00 | H22: 60.00 | I22: 60.00 | J22: 28,800.00
D23: 12.09.2024 | E23: 1 | F23: 1.00 | G23: 8.00 | H23: 60.00 | I23: 60.00 | J23: 28,800.00
D24: 13.09.2024 | E24: 1 | F24: 1.00 | G24: 8.00 | H24: 60.00 | I24: 60.00 | J24: 28,800.00
D25: 14.09.2024 | E25: 1 | F25: 1.00 | G25: 8.00 | H25: 60.00 | I25: 60.00 | J25: 28,800.00
D26: 15.09.2024 | E26: 1 | F26: 1.00 | G26: 8.00 | H26: 60.00 | I26: 60.00 | J26: 28,800.00
D27: 16.09.2024 | E27: 1 | F27: 1.00 | G27: 8.00 | H27: 60.00 | I27: 60.00 | J27: 28,800.00
D28: 17.09.2024 | E28: 1 | F28: 1.00 | G28: 8.00 | H28: 60.00 | I28: 60.00 | J28: 28,800.00
D29: 18.09.2024 | E29: 1 | F29: 1.00 | G29: 8.00 | H29: 60.00 | I29: 60.00 | J29: 28,800.00
D30: 19.09.2024 | E30: 1 | F30: 1.00 | G30: 8.00 | H30: 60.00 | I30: 60.00 | J30: 28,800.00
D31: 20.09.2024 | E31: 1 | F31: 1.00 | G31: 8.00 | H31: 60.00 | I31: 60.00 | J31: 28,800.00
D32: 21.09.2024 | E32: 1 | F32: 1.00 | G32: 8.00 | H32: 60.00 | I32: 60.00 | J32: 28,800.00
D33: 22.09.2024 | E33: 1 | F33: 1.00 | G33: 8.00 | H33: 60.00 | I33: 60.00 | J33: 28,800.00
B34: Total Quantity (Cft) = | J34: =SUM(J7:J33) -> 777,600.00
B35: 80% efficiency of pump | J35: =J34*80% -> 622,080.00
A39: Quantity Surveyor:___________________ | H39: Quantity Surveyor:___________________
A40: M/s Stallions Construction Co. | H40: NESPAK (Pvt) Limited

Sheet 18.Marble Strip (hidden)
A1: CONSTRUCTION OF ROAD FROM FEROZEPUR ROAD TO ANAM ROAD, LAHORE
B2: Contractor:- M/s Stallions Construction Co. | D2: Client : LDA | I2: Consultant: NESPAK (Pvt) Ltd.
A3: IPC NO. 03
A4: ='Abstract of Cost'!B64 -> Providing and fixing marble strip of any shade for dividing the mosaic flooring into panels a) Size 1½" x 3/8" (40 x 10 mm)
A5: S.No. | B5: IPC No. | C5: Date | D5: No. | E5: Length (ft) | F5: Width (ft) | I5: Avg. Thickness (ft) | J5: Quantity (Cft) | K5: Remarks
F6: Start | G6: End | H6: Average
C7: 1400 to 2370 | D7: 26 | E7: 24 | J7: =E7*D7 -> 624.00 | M7: =970/25 -> 38.8
B8: Total Quantity (RFT) = | J8: =SUM(J7:J7) -> 624.00 | M8: =M7/3 -> 12.93333333
B9: Already Paid Quantity (RFT) = | J9: 624.00 | M9: =M8*2 -> 25.86666667
B10: This Bill Quantity (RFT) = | J10: =J8-J9 -> 0.00
A14: Quantity Surveyor:___________________ | I14: Quantity Surveyor:______________
A15: M/s Stallions Construction Co. | I15: NESPAK (Pvt) Limited

Sheet Dis of Pcc Analysis (hidden)
A1: Rate Analysis For Dismantling of PCC i/c removal from site up to 5 km
A2: MRS, 1st BI-ANNUAL-2024 (01.01.2024 to 30.06.2024)DISTRICT LAHORE
A3: MRS REF | B3: Description | C3: Rate | D3: Unit
A4: Ch:4 Item 19 ( C ) | B4: Dismantling cement concrete 1:2:4 | C4: 15681.6 | D4: 100 Cft
A5: Ch:1 Item 1 1st KM | B5: Carriage of 100 Cft. (2.83 cu.m) of all materials like stone aggregate, spawl, kankar lime (unslaked), surkhi, etc. or 150 Cft. (4.25 cu.m) of timber, by truck or by any other means owned by the contractor. 1st KM | C5: 352.65 | D5: 100 Cft
B6: 2nd KM | C6: 168.65
B7: 3rd KM | C7: 132.75
B8: 4th KM | C8: 94.9
B9: 5th KM | C9: 88.75
B10: 6th KM
B11: Total | C11: =SUM(C4:C9) -> 16519.30 | D11: 100 Cft
B16: 1000 cft | E16: 12,672.60
A17: 1st 400 m | C17: 1 | D17: 5410.5 | E17: =D17*C17 -> 5410.50
A18: 0.4 KM to 1.6 KM PER 100 M | C18: 12 | D18: 22.05 | E18: =D18*C18 -> 264.6
A19: 1.6 KM to 8 KM PER 400 M | C19: 16 | D19: 378.25 | E19: =D19*C19 -> 6052
E20: -202.89
E21: =SUM(E16:E20) -> 24,196.81
